{"text_format":"1","workbook":"xlsx","n_sheets":5,"sheets":["Ark1","Ark2","Ark3","Ark4","Ark5"],"not_rendered":{"charts":0,"images":0,"macros":1,"external_links":0,"defined_names":0,"comments":0,"pivot_tables":0},"unopened":[],"bounds":{"document_bytes":16777216,"sheet_cells":100000,"rows_first":2000,"rows_last":500,"rows_between":2000,"halvings":0,"cell_chars":16384,"cell_head_chars":4096},"cells_cut":0,"cells_raw":0,"read":"whole","date_system":"1900"}

{"sheet":"Ark1","index":0,"n_rows":105,"n_cols":79,"rows_kept":105,"cut":false,"hidden":false,"merged":[[27,16,27,30],[26,0,26,14],[28,16,28,30],[5,0,5,14],[6,0,6,14],[8,0,8,14],[9,0,9,14],[11,0,11,14],[12,0,12,14],[14,0,14,14],[15,0,15,14],[17,0,17,14],[22,16,22,30],[25,16,25,30],[23,16,23,30],[24,16,24,30],[26,16,26,30],[18,0,18,14],[21,0,21,14],[22,0,22,14],[24,0,24,14],[25,0,25,14]]}
[]
["Nøgle til de danske Sociale Gedehamse (Hymenoptera: Vespidae)",null,null,null,null,null,null,null,null,null,null,null,null,null,null,null,null,null,null,null,null,null,null,null,null,null,null,null,null,null,null,null,null,null,null,null,null,null,null,null,null,null,null,null,null," "]
[]
[null,null,null,null,null,null,null,null,null,null,null,null,null,null,null,null,null,null,null,{"$f":"IF(AR8=1,VLOOKUP(AR7,BK10:BL20,2,FALSE),\"       Vespinae sp.\")","v":"       Vespinae sp."},null,null,null,null,null,null,null,null,null,null,null,null,null,null," "]
[null,null,null,null,null,null,null,null,null,null,null,null,null,null,null,null,null,null,null,null,{"$f":"IF(AR8=1,VLOOKUP(AR7,BB23:BC33,2,FALSE),\"      Gedehams\")","v":"      Gedehams"},null,null,null,null,null,null,null,null,null,null,null,null,null,null,null," ","Afkrydsede felter",null,null,null,null,null,{"$f":"SUM(AS5+AU5+AW5+AY5+BA5+BC5+BF5+BI5)","v":0},{"$f":"IF(AT5=0,0,1)","v":0},{"$f":"SUM(AS6:AT6)","v":0},{"$f":"IF(AV5=0,0,1)","v":0},{"$f":"SUM(AU6:AV6)","v":0},{"$f":"IF(AX5=0,0,1)","v":0},{"$f":"SUM(AW6:AX6)","v":0},{"$f":"IF(AZ5=0,0,1)","v":0},{"$f":"SUM(AY6:AZ6)","v":0},{"$f":"IF(BB5=0,0,1)","v":0},{"$f":"SUM(BA6:BB6)","v":0},{"$f":"IF(BD5=0,0,1)","v":0},{"$f":"SUM(BC6:BE6)","v":0},null,{"$f":"IF(BG5=0,0,1)","v":0},{"$f":"SUM(BF6:BH6)","v":0},null,{"$f":"IF(BJ5=0,0,1)","v":0},{"$f":"SUM(BI6:BJ6)","v":0}]
["Bagkrop med 6 led, følehorn med 12 led (hun)? ",null,null,null,null,null,null,null,null,null,null,null,null,null,null,null,null,{"$f":"IF(AR8=1,\" \",IF(AR5=0,\" \",IF(AR5>AR7,\" \",\"Se de mulige arter i oversigten nedenfor.\")))","v":" "},null,null,null,null,null,null,null,null,null,null,null,null,null,null,null,null,null,null,null,null,null,null,null,null,null,null,{"$f":"IF(BX6=\" \",0,1)","v":0},{"$f":"IF(BX7=\" \",0,1)","v":0},{"$f":"IF(BX9=\" \",0,1)","v":0},{"$f":"IF(BX10=\" \",0,1)","v":0},{"$f":"IF(BX12=\" \",0,1)","v":0},{"$f":"IF(BX13=\" \",0,1)","v":0},{"$f":"IF(BX15=\" \",0,1)","v":0},{"$f":"IF(BX16=\" \",0,1)","v":0},{"$f":"IF(BX18=\" \",0,1)","v":0},{"$f":"IF(BX19=\" \",0,1)","v":0},{"$f":"IF(BX21=\" \",0,1)","v":0},{"$f":"IF(BX22=\" \",0,1)","v":0},{"$f":"IF(BX23=\" \",0,1)","v":0},{"$f":"IF(BX25=\" \",0,1)","v":0},{"$f":"IF(BX26=\" \",0,1)","v":0},{"$f":"IF(BX27=\" \",0,1)","v":0},{"$f":"IF(BX29=\" \",0,1)","v":0},{"$f":"IF(BX30=\" \",0,1)","v":0},null,null,null,null,null,null,null,null,null,null,null,null,null,{"$f":"IF(CA6,\"x\",\" \")","v":" "},null,null,0]
["Bagkrop med 7 led, følehorn med 13 led (han)? ",null,null,null,null,null,null,null,null,null,null,null,null,null,null,null,{"$f":"IF(AR8=1,\"Gedehamsen er nu bestemt.   Se ovenfor.\",\" \")","v":" "},null,null,null,null,null,null,null,null,null,null,null,null,null,null,null,null,null," ",null,null,null,null,null,"Maks.",null,null,{"$f":"MAX(AR10:AR20)","v":0},null,null,null,null,null,null,null,null,null,null,null,null,null,null,null,null,null,null,null,null,null,null,null,null,null,null,null,null,null,null,null,{"$f":"IF(CA7,\"x\",\" \")","v":" "},null,null,0]
[" "," ",null,null,null,null,null,null,null,null,null,null,null,null,null,null,{"$f":"IF(AR5>AR7,\"Afkrydsede kendetegn passer ikke med nøglens.\",\" \")","v":" "},null,null,null,null,null,null,null,null,null,null,null,null,null,null,null,null,null,null,null,null,null,null,"Antal Maks.",null,null,null,{"$f":"COUNTIF(AR10:AR20,AR7)","v":11},null,null,null,null,null,null,null,null,null,null,null,null,null,null,null,null,null,null,null,null,null,null,null,null,null,null,null,null,null,null,null," "]
["Afstand mellem øje og kindbakke stor?",null,null,null,null,null,null,null,null,null,null,null,null,null,null,null,{"$f":"IF(AR5>AR7,\"Det gør en bestemmelse tvivlsom.    Prøv igen !\",\" \")","v":" "},null,null,null,null,null,null,null,null,null,null,null,null,null,null,null,null,null,null,null,null,null,null,null,null,null,null,null,"hun","han","st.","ll.","rød","uden","rød","uden","sp.","ru.","stor","prik","uden","gul","gul","ikke",7,null,null,null,null,null,null,null,null,null,null,null,null,null,null,{"$f":"IF(CA9,\"x\",\" \")","v":" "},null,null,0]
["Afstand mellem øje og kindbakke lille?",null,null,null,null,null,null,null,null,null,null,null,null,null,null,null," Vil du læse om en art, så klik dens nummer",null,null,null,null,null,null,null,null,null,null,null,null,null,null,null,null,null,1,{"$f":"IF(BM8=BM5,\"Vespa crabro\",\" \")","v":"Vespa crabro"},null,null,null,null,null,null,null,{"$f":"SUM(AS10:BJ10)","v":0},{"$f":"IF(BX6=\"x\",1,\" \")","v":" "},{"$f":"IF($BX$7=\"x\",1,\" \")","v":" "}," ",{"$f":"IF(BX10=\"x\",1,\"\")","v":""},{"$f":"IF(BX12=\"x\",1,\" \")","v":" "},null,{"$f":"IF(BX15=\"x\",1,\" \")","v":" "},null,null,{"$f":"IF($BX$19=\"x\",1,\" \")","v":" "},null,null,{"$f":"IF($BX$23=\"x\",1,\" \")","v":" "},null,{"$f":"IF(BX26=\"x\",1,\" \")","v":" "},null,null,{"$f":"IF($BX$30=\"x\",1,\" \")","v":" "},{"$f":"SUM(AS10:BH10)","v":0},{"$f":"IF(CN8=CN5,\"    Vespa crabro\",\" \")","v":"    Vespa crabro"},null,null,null,null,null,null,null,null,null,null,null,{"$f":"IF(CA10,\"x\",\" \")","v":" "},null,null,0]
[null,null,null,null,null,null,null,null,null,null,null,null,null,null,null,null,null,null,1,{"$f":"IF(AR10=AR7,\"Vespa crabro\",\" \")","v":"Vespa crabro"},null,null,null,null,null,null,null,null,null,null,null,null,null,null,2,{"$f":"IF(BM9=BM5,\"Dolichovespula media\",\" \")","v":"Dolichovespula media"},null,null,null,null,null,null,null,{"$f":"SUM(AS11:BJ11)","v":0},{"$f":"IF(BX6=\"x\",1,\" \")","v":" "}," ",{"$f":"IF(BX9=\"x\",1,\"\")","v":""},null,{"$f":"IF(BX12=\"x\",1,\" \")","v":" "},{"$f":"IF($BX$13=\"x\",1,\" \")","v":" "},null,{"$f":"IF(BX16=\"x\",1,\" \")","v":" "},null,{"$f":"IF($BX$19=\"x\",1,\" \")","v":" "},null,{"$f":"IF($BX$22=\"x\",1,\" \")","v":" "}," ",null,{"$f":"IF(BX26=\"x\",1,\" \")","v":" "},null,{"$f":"IF($BX$29=\"x\",1,\" \")","v":" "},null,0,{"$f":"IF(CN9=CN5,\"Dolichovespula media\",\" \")","v":"Dolichovespula media"},null,null,null,null,null,null,null,null,null,null,null," "]
["Hoved og bryst med rødbrune partier?",null,null,null,null,null,null,null,null,null,null,null,null,null,null,null,null,null,2,{"$f":"IF(AR11=AR7,\"Dolichovespula media\",\" \")","v":"Dolichovespula media"},null,null,null,null,null,null,null,null,null,null,null,null,null,null,3,{"$f":"IF(BN10=BM5,\"Dolichovespula sylvestris\",\" \")","v":"Dolichovespula sylvestris"},null,null,null,null,null,null,null,0,{"$f":"IF(BX6=\"x\",1,\" \")","v":" "}," ",{"$f":"IF(BX9=\"x\",1,\"\")","v":""},null,null," ",null,{"$f":"IF(BX16=\"x\",1,\" \")","v":" "},null,{"$f":"IF($BX$19=\"x\",1,\" \")","v":" "},null,{"$f":"IF($BX$22=\"x\",1,\" \")","v":" "},{"$f":"IF($BX$23=\"x\",1,\" \")","v":" "}," ",null,{"$f":"IF($BX$27=\"x\",1,\" \")","v":" "},null,{"$f":"IF($BX$30=\"x\",1,\" \")","v":" "},0,{"$f":"IF(CN10=CN5,\"Dolichovespula sylvestris\",\" \")","v":"Dolichovespula sylvestris"},null,null,null,null,null,null,null,null,null,null,null,{"$f":"IF(CA12,\"x\",\" \")","v":" "},null,null,0]
["Hoved og bryst uden rødbrune partier?",null,null,null,null,null,null,null,null,null,null,null,null,null,null,null,null,null,3,{"$f":"IF(AR12=AR7,\"Dolichovespula sylvestris\",\" \")","v":"Dolichovespula sylvestris"},null,null,null,null,null,null,null,null,null,null,null,null,null,null,4,{"$f":"IF(BN11=BM5,\"Dolichovespula norwegica\",\" \")","v":"Dolichovespula norwegica"},null,null,null,null,null,null,null,0,{"$f":"IF($BX$6=\"x\",1,\" \")","v":" "}," ",{"$f":"IF(BX9=\"x\",1,\"\")","v":""},null,null," ",{"$f":"IF(BX15=\"x\",1,\" \")","v":" "},{"$f":"IF(BX16=\"x\",1,\" \")","v":" "},null,{"$f":"IF($BX$19=\"x\",1,\" \")","v":" "},{"$f":"IF($BX$21=\"x\",1,\" \")","v":" "},null," "," ",null," ",null,{"$f":"IF($BX$30=\"x\",1,\" \")","v":" "},0,{"$f":"IF(CN11=CN5,\"Dolichovespula norwegica\",\" \")","v":"Dolichovespula norwegica"},null,null,null,null,null,null,null,null,null,null,null,{"$f":"IF(CA13,\"x\",\" \")","v":" "},null,null,0]
[null,null,null,null,null,null,null,null,null,null,null,null,null,null,null,null,null,null,4,{"$f":"IF(AR13=AR7,\"Dolichovespula norwegica\",\" \")","v":"Dolichovespula norwegica"},null,null,null,null,null,null,null,null,null,null,null,null,null,null,5,{"$f":"IF(BN12=BM5,\"Dolichovespula saxonica\", \" \")","v":"Dolichovespula saxonica"},null,null,null,null,null,null,null,0," "," ",{"$f":"IF(BX9=\"x\",1,\"\")","v":""},null,null," ",null,{"$f":"IF(BX16=\"x\",1,\" \")","v":" "},null,{"$f":"IF($BX$19=\"x\",1,\" \")","v":" "},{"$f":"IF($BX$21=\"x\",1,\" \")","v":" "},{"$f":"IF($BX$22=\"x\",1,\" \")","v":" "}," "," ",null," ",null," ",0,{"$f":"IF(CN12=CN5,\"Dolichovespula saxonica\", \" \")","v":"Dolichovespula saxonica"},null,null,null,null,null,null,null,null,null,null,null," "]
["Bagkrop med rødbrune partier basalt?",null,null,null,null,null,null,null,null,null,null,null,null,null,null,null,null,null,5,{"$f":"IF(AR14=AR7,\"Dolichovespula saxonica\", \" \")","v":"Dolichovespula saxonica"},null,null,null,null,null,null,null,null,null,null,null,null,null,null,6,{"$f":"IF(BN13=BM5,\"Dolichovespula adulterina\",\" \")","v":"Dolichovespula adulterina"},null,null,null,null,null,null,null,0," "," ",{"$f":"IF(BX9=\"x\",1,\"\")","v":""},null,null," ",null,{"$f":"IF(BX16=\"x\",1,\" \")","v":" "},{"$f":"IF(BX18=\"x\",1,\" \")","v":" "},null,{"$f":"IF($BX$21=\"x\",1,\" \")","v":" "},null," "," ",null," ",null," ",0,{"$f":"IF(CN13=CN5,\"Dolichovespula adulterina\",\" \")","v":"Dolichovespula adulterina"},null,null,null,null,null,null,null,null,null,null,null,{"$f":"IF(CA15,\"x\",\" \")","v":" "},null,null,0]
["Bagkrop uden rødbrune partier?",null,null,null,null,null,null,null,null,null,null,null,null,null,null,null,null,null,6,{"$f":"IF(AR15=AR7,\"Dolichovespula adulterina\",\" \")","v":"Dolichovespula adulterina"},null,null,null,null,null,null,null,null,null,null,null,null,null,null,7,{"$f":"IF(BN14=BM5,\"Dolichovespula omissa\",\" \")","v":"Dolichovespula omissa"},null,null,null,null,null,null,null,0," "," ",{"$f":"IF(BX9=\"x\",1,\"\")","v":""},null,null," ",null,{"$f":"IF($BX$16=\"x\",1,\" \")","v":" "},{"$f":"IF(BX18=\"x\",1,\" \")","v":" "},null,null,{"$f":"IF($BX$22=\"x\",1,\" \")","v":" "}," "," ",null," ",null," ",0,{"$f":"IF(CN14=CN5,\"Dolichovespula omissa\",\" \")","v":"Dolichovespula omissa"},null,null,null,null,null,null,null,null,null,null,null,{"$f":"IF(CA16,\"x\",\" \")","v":" "},null,null,0]
[null,null,null,null,null,null,null,null,null,null,null,null,null," ",null,null,null,null,7,{"$f":"IF(AR16=AR7,\"Dolichovespula omissa\",\" \")","v":"Dolichovespula omissa"},null,null,null,null,null,null,null,null,null,null,null,null,null,null,8,"Vespula austriaca ",null,null,null,null,null,null,null,0," "," "," ",{"$f":"IF(BX10=\"x\",1,\"\")","v":""},null," ",null,{"$f":"IF($BX$16=\"x\",1,\" \")","v":" "},{"$f":"IF(BX18=\"x\",1,\" \")","v":" "},null,null,{"$f":"IF($BX$22=\"x\",1,\" \")","v":" "},{"$f":"IF($BX$23=\"x\",1,\" \")","v":" "},null,null," ",null," ",0,{"$f":"IF(CN15=CN5,\" Vespula austriaca\",\" \")","v":" Vespula austriaca"},null,null,null,null,null,null,null,null,null,null,null," "]
["Mundskjolds nederste hjørner tilspidsede?",null,null,null,null,null,null,null,null,null,null,null,null,null,null,null,null,null,8,{"$f":"IF(AR17=AR7,\"Vespula austriaca\",\" \")","v":"Vespula austriaca"},null,null,null,null,null,null,null,null,null,null,null,null,null,null,9,{"$f":"IF(BN16=BM7,\"Vespula rufa\",\" \")","v":"Vespula rufa"},null,null,null,null,null,null,null,0," "," "," ",{"$f":"IF(BX10=\"x\",1,\"\")","v":""},null," ",{"$f":"IF(BX15=\"x\",1,\" \")","v":" "},null,null,{"$f":"IF($BX$19=\"x\",1,\" \")","v":" "},{"$f":"IF($BX$21=\"x\",1,\" \")","v":" "},{"$f":"IF($BX$22=\"x\",1,\" \")","v":" "}," ",null,null," ",null," ",0,{"$f":"IF(CN16=CN7,\"    Vespula rufa\",\" \")","v":"    Vespula rufa"},null,null,null,null,null,null,null,null,null,null,null,{"$f":"IF(CA18,\"x\",\" \")","v":" "},null,null,0]
["Mundskjolds nederste  hjørne afrundede?",null,null,null,null,null,null,null,null,null,null,null,null,null,null,null,null,null,9,{"$f":"IF(AR18=AR7,\"Vespula rufa\",\" \")","v":"Vespula rufa"},null,null,null,null,null,null,null,null,null,null,null,null,null,null,10,{"$f":"IF(BN17=BM8,\"Vespula germanica\",\" \")","v":"Vespula germanica"},null,null,null,null,null,null,null,0," "," "," ",{"$f":"IF(BX10=\"x\",1,\"\")","v":""},null," ",null,{"$f":"IF($BX$16=\"x\",1,\" \")","v":" "},null,{"$f":"IF($BX$19=\"x\",1,\" \")","v":" "},null,{"$f":"IF($BX$22=\"x\",1,\" \")","v":" "},{"$f":"IF($BX$23=\"x\",1,\" \")","v":" "},{"$f":"IF(BX25=\"x\",1,\" \")","v":" "},null,null,null," ",0,{"$f":"IF(CN17=CN8,\" Vespula germanica\",\" \")","v":" Vespula germanica"},null,null,null,null,null,null,null,null,null,null,null,{"$f":"IF(CA19,\"x\",\" \")","v":" "},null,null,0]
[null,null,null,null,null,null,null,null,null,null,null,null,null,null,null,null,null,null,10,{"$f":"IF(AR19=AR7,\"Vespula germanica\",\" \")","v":"Vespula germanica"},null,null,null,null,null,null,null,null,null,null,null,null,null,null,11,{"$f":"IF(BN18=BM9,\"Vespula vulgaris\",\" \")","v":"Vespula vulgaris"},null,null,null,null,null,null,null,0," "," "," ",{"$f":"IF(BX10=\"x\",1,\"\")","v":""},null," ",null,{"$f":"IF($BX$16=\"x\",1,\" \")","v":" "},null,{"$f":"IF($BX$19=\"x\",1,\" \")","v":" "},{"$f":"IF($BX$21=\"x\",1,\" \")","v":" "},{"$f":"IF($BX$22=\"x\",1,\" \")","v":" "}," ",null,{"$f":"IF(BX26=\"x\",1,\" \")","v":" "},null,null," ",0,{"$f":"IF(CN18=CN9,\"    Vespula vulgaris\",\" \")","v":"    Vespula vulgaris"},null,null,null,null,null,null,null,null,null,null,null," "]
["Mundskjold med stor sort tegning?",null,null,null,null,null,null,null,null,null,null,null,null," ",null,null,null,null,11,{"$f":"IF(AR20=AR7,\"Vespula vulgaris\",\" \")","v":"Vespula vulgaris"},null,null,null,null,null,null,null,null,null,null,null,null,null,null,null,null,null,null,null,null,null,null,null,null,null,null,null,null,null,null,null,null,null,null,null,null,null,null,null,null,null,null,null,null,null,null,null,null,null,null,null,null,null,null,null,{"$f":"IF(CA21,\"x\",\" \")","v":" "},null,null,0]
["Mundskjold kun med prikker eller streg?",null,null,null,null,null,null,null,null,null,null,null,null,null,null,null,"Du har valgt",null,null,null,{"$f":"+CA36","v":1},{"$f":"VLOOKUP(U22,AI10:AJ20,2)","v":"Vespa crabro"},null,null,null,null,null,null,null,null,null,null,null,null,null,null,null,null,null,null,null,null,null,null,null,null,null,null,null,null,null,null,null,null,null,null,null,null,null,null,null,null,null,null,null,null,null,null,null,null,null,null,null,null,null,{"$f":"IF(CA22,\"x\",\" \")","v":" "},null,null,0]
["Mundskjold helt gult, uden sort tegning?",null,null,null,null,null,null,null,null,null,null,null,null,null,null,null,{"$f":"VLOOKUP(U22,AI23:AJ33,2)","v":"Meget stor art, i stort omfang med gulbrune og rødgule"},null,null,null,null,null,null,null,null,null,null,null,null,null,null,null,null," ",1,"Meget stor art, i stort omfang med gulbrune og rødgule",null,null,null,null,null,null,null,null,null,null,null,null,null,null,null,null,null,{"$f":"SUM(AS10:BH10)","v":0},"Stor Gedehams",null,null,null,null,null,null,null,null,null,null,null,null,null,null,null,null,null,null,null,null,{"$f":"IF(CA23,\"x\",\" \")","v":" "},null,null,0]
[null,null,null,null,null,null,null,null,null,null,null,null,null,null,null,null,{"$f":"VLOOKUP(U22,AI35:AJ45,2)","v":"tegninger. Afstand fra kindbakke til øje lille. Mund-"},null,null,null,null,null,null,null,null,null,null,null,null,null,null,null,null,null,2,"Afstand mellem kindbakke og øje ikke helt så stor som ",null,null,null,null,null,null,null,null,null,null,null,null,null,null,null,null,null,{"$f":"SUM(AS11:BH11)","v":0},"Mellemstor Gedehams",null,null,null,null,null,null,null,null,null,null,null,null,null,null,null,null,null,null,null,null," "]
["Øjenindskæring gul, buende ind mod panden?",null,null,null,null,null,null,null,null,null,null,null,null,null,null,null,{"$f":"VLOOKUP(U22,AI47:AJ57,2)","v":"skjold og øjenindbugting helt gule. Baghovedet meget"},null,null,null,null,null,null,null,null,null,null,null,null,null,null,null,null,null,3,"Stor afstand mellem kindbakke og øje. Mundskjold hos",null,null,null,null,null,null,null,null,null,null,null,null,null,null,null,null,null,0," Skovgedehams",null,null,null,null,null,null,null,null,null,null,null,null,null,null,null,null,null,null,null,null,{"$f":"IF(CA25,\"x\",\" \")","v":" "},null,null,0]
["Den gule indskæring  buer ikke mod panden?",null,null,null,null,null,null,null,null,null,null,null,null,null,null,null,{"$f":"VLOOKUP(U22,AI59:AJ69,2)","v":"bredt. De bagerste punktøjne sidder længere fremme på"},null,null,null,null,null,null,null,null,null,null,null,null,null,null,null,null,null,4,"En Gedehams med stor afstand fra kindbakke til øje og",null,null,null,null,null,null,null,null,null,null,null,null,null,null,null,null,null,0," Norsk Gedehams",null,null,null,null,null,null,null,null,null,null,null,null,null,null,null,null,null,null,null,null,{"$f":"IF(CA26,\"x\",\" \")","v":" "},null,null,0]
["Indskæringen kun smalt gul nederst?",null,null,null,null,null,null,null,null,null,null,null,null,null,null,null,{"$f":"VLOOKUP(U22,AI71:AJ81,2)","v":"panden end øjnenes bagkanter. 1. bagkropsleds basis"},null,null,null,null,null,null,null,null,null,null,null,null,null,null,null,null,null,5,"Stor afstand  mellem kindbakke og øje. Øjenindbugtnin-",null,null,null,null,null,null,null,null,null,null,null,null,null,null,null,null,null,0,"Dolichovespula saxonica",null,null,null,null,null,null,null,null,null,null,null,null,null,null,null,null,null,null,null,null,{"$f":"IF(CA27,\"x\",\" \")","v":" "},null,null,0]
[null,null,null,null,null,null,null,null,null,null,null,null,null,null,null,null,{"$f":"VLOOKUP(U22,AI83:AJ93,2)","v":"er rødligt. Derved adskiller V.crabro sig fra D. media,"},null,null,null,null,null,null,null,null,null,null,null,null,null,null,null,null,null,6,"Snylter hos D. saxonica og norwegica. Stor afstand mel-",null,null,null,null,null,null,null,null,null,null,null,null,null,null,null,null,null,{"$f":"SUM(AS15:BH15)","v":0}," Snyltegedehams",null,null,null,null,null,null,null,null,null,null,null,null,null,null,null,null,null,null,null,null," "]
[null,null,null,null,null,null,null,null,null,null,null,null,null,null,null,null,{"$f":"VLOOKUP(U22,AI95:AJ105,2)","v":"som har basis sort og bagkroppen uden rødlige partier."},null,null,null,null,null,null,null,null,null,null,null,null,null,null,null,null,null,7,"Snylter hos D. sylvestris. Stor afstand mellem kindbak-",null,null,null,null,null,null,null,null,null,null,null,null,null,null,null,null,null,0,"Skov-Snyltegedehams",null,null,null,null,null,null,null,null,null,null,null,null,null,null,null,null,null,null,null,null,{"$f":"IF(CA29,\"x\",\" \")","v":" "}]
[null,null,null,null,null,null,null,null,null,null,null,null,null,null,null,null,null,null,null,null,null,null,null,"Version 1. Bent Haagen Petersen",null,null,null,null,null,null,null,null,null,null,8,"Snylter hos V. rufa. Kort afstand mellem kindbakke og ",null,null,null,null,null,null,null,null,null,null,null,null,null,null,null,null,null,0,"Snyltegedehams",null,null,null,null,null,null,null,null,null,null,null,null,null,null,null,null,null,null,null,null," "]
[null,null,null,null,null,null,null,null,null,null,null,null,null,null,null,null,null,null,null,null,null,null,null,null,null,null,null,null,null,null,null,null,null,null,9," Gedehams med kort afstand mellem kindbakke og øje,",null,null,null,null,null,null,null,null,null,null,null,null,null,null,null,null,null,0,"Rød Gedehams"]
[null,null,null,null,null,null,null,null,null,null,null,null,null,null,null,null,null,null,null,null,null,null,null,null,null,null,null,null,null,null,null,null,null,null,10,"Kort afstand mellem øje og kindbakke. Mundskjold hos",null,null,null,null,null,null,null,null,null,null,null,null,null,null,null,null,null,0,"Tysk Gedehams"]
[null,null,null,null,null,null,null,null,null,null,null,null,null,null,null,null,null,null,null,null,null,null,null,null,null,null,null,null,null,null,null,null,null,null,11,"Kort afstand mellem øje og kindbakke. Mundskjold hos",null,null,null,null,null,null,null,null,null,null,null,null,null,null,null,null,null,0,"Almindelig Gedehams"]
[null,null,null,null,null,null,null,null,null,null,null,null,null,null,null,null,null,null,null,null,null,null,null,null,null,null,null,null,null,null,null,null,null,null,null,null,null,null,null,null,null,null,null,null,null,null,null,null,null,null,null,null,null,null,null,null,null,null,null,null,null,null,null,null,null,null,null,null,null,null,null,null,null,null,null,null,null,null,1]
[null,null,null,null,null,null,null,null,null,null,null,null,null,null,null,null,null,null,null,null,null,null,null,null,null,null,null,null,null,null,null,null,null,2,1,"tegninger. Afstand fra kindbakke til øje lille. Mund-"]
[null,null,null,null,null,null,null,null,null,null,null,null,null,null,null,null,null,null,null,null,null,null,null,null,null,null,null,null,null,null,null,null,null,null,2,"ellers i slægten. Mundskjold oftest helt gult (dronning),",null,null,null,null,null,null,null,null,null,null,null,null,null,null,null,null,null,null,null,null,null,null,null,null,null,null,null,null,null,null,null,null,null,null,null,null,null,null,null,null,null,null,{"$f":"SUM(CA34)","v":1}]
[null,null,null,null,null,null,null,null,null,null,null,null,null,null,null,null,null,null,null,null,null,null,null,null,null,null,null,null,null,null,null,null,null,null,3,"hunnen med eller uden lille sort prik, oftest uden. Hos"]
[null,null,null,null,null,null,null,null,null,null,null,null,null,null,null,null,null,null,null,null,null,null,null,null,null,null,null,null,null,null,null,null,null,null,4,"rødt  på bagkropsbasis sider vil altid være P. nerwegica."]
[null,null,null,null,null,null,null," ",null,null,null,null,null,null,null,null,null,null,null,null,null,null,null,null,null,null,null,null,null,null,null,null,null,null,5,"gen gul nederst.  Mundskjold med stor sort tegning, der"]
[null,null,null,null,null,null,null,null,null,null,null,null,null,null,null,null,null,null,null,null,null,null,null,null,null,null,null,null,null,null,null,null,null,null,6,"lem kindbakke og øje. Mundskjoldet  med spidst udad- "]
[null,null,null,null,null,null,null,null,null,null,null,null,null,null,null,null,null,null,null,null,null,null,null,null,null,null,null,null,null,null,null,null,null,null,7,"ke og øje. Stor gul kindplet ud for øjenunderkanten."]
[null,null,null,null,null,null,null,null,null,null,null,null,null,null,null,null,null,null,null,null,null,null,null,null,null,null,null,null,null,null,null,null,null,null,8,"øje. Mundskjold med 1-3 sorte prikker (hun), 1 eller   "]
[null,null,null,null,null,null,null,null,null,null,null,null,null,null,null,null,null,null,null,null,null,null,null,null,null,null,null,null,null,null,null,null,null,null,9,"smal gul stribe i øjenindbugtningen og rød bagkropsba- "]
[null,null,null,null,null,null,null,null,null,null,null,null,null,null,null,null,null,null,null,null,null,null,null,null,null,null,null,null,null,null,null,null,null,null,10,"hun med 3 sorte prikker, øverste størst. Hannen har of-"]
[null,null,null,null,null,null,null,null,null,null,null,null,null,null,null,null,null,null,null,null,null,null,null,null,null,null,null,null,null,null,null,null,null,null,11,"hun med stor sort ankerformet plet, der hos hannen er"]
[]
[null,null,null,null,null,null,null,null,null,null,null,null,null,null,null,null,null,null,null,null,null,null,null,null,null,null,null,null,null,null,null,null,null,3,1,"skjold og øjenindbugting helt gule. Baghovedet meget"]
[null,null,null,null,null,null,null,null,null,null,null,null,null,null,null,null,null,null,null,null,null,null,null,null,null,null,null,null,null,null,null,null,null,null,2,"med stribe (arbejder og han). Bagerste punktøjne på li-"]
[null,null,null,null,null,null,null,null,null,null,null,null,null,null,null,null,null,null,null,null,null,null,null,null,null,null,null,null,null,null,null,null,null,null,3,"hannen sædvanligvis lille prik. Øjenindskæringen med"]
[null,null,null,null,null,null,null,null,null,null,null,null,null,null,null,null,null,null,null,null,null,null,null,null,null,null,null,null,null,null,null,null,null,null,4,"Det røde kan dog  mangle. Ligner da D. saxonica, der "]
[null,null,null,null,null,null,null,null,null,null,null,null,null,null,null,null,null,null,null,null,null,null,null,null,null,null,null,null,null,null,null,null,null,null,5," kan være reduceret. Mellem- og baglår med rødbrunt i"]
[null,null,null,null,null,null,null,null,null,null,null,null,null,null,null,null,null,null,null,null,null,null,null,null,null,null,null,null,null,null,null,null,null,null,6,"trukne hjørner (hun), retvinklede (han). På mundskjold-"]
[null,null,null,null,null,null,null,null,null,null,null,null,null,null,null,null,null,null,null,null,null,null,null,null,null,null,null,null,null,null,null,null,null,null,7,"Mundskjold med lille sort prik; dets nedre hjørner er"]
[null,null,null,null,null,null,null,null,null,null,null,null,null,null,null,null,null,null,null,null,null,null,null,null,null,null,null,null,null,null,null,null,null,null,8,"ingen prik (han). Hunnens mundskjold med spidst ud-"]
[null,null,null,null,null,null,null,null,null,null,null,null,null,null,null,null,null,null,null,null,null,null,null,null,null,null,null,null,null,null,null,null,null,null,9,"sis er altid V. rufa.( Det røde kan mangle, og da kan den"]
[null,null,null,null,null,null,null,null,null,null,null,null,null,null,null,null,null,null,null,null,null,null,null,null,null,null,null,null,null,null,null,null,null,null,10,"test 1 eller ingen prik. Den gule stribe bag øjnene er u-"]
[null,null,null,null,null,null,null,null,null,null,null,null,null,null,null,null,null,null,null,null,null,null,null,null,null,null,null,null,null,null,null,null,null,null,11," reduceret. Den gule stribe bag øjnene er næsten altid"]
[]
[null,null,null,null,null,null,null,null,null,null,null,null,null,null,null,null,null,null,null,null,null,null,null,null,null,null,null,null,null,null,null,null,null,4,1,"bredt. De bagerste punktøjne sidder længere fremme på"]
[null,null,null,null,null,null,null,null,null,null,null,null,null,null,null,null,null,null,null,null,null,null,null,null,null,null,null,null,null,null,null,null,null,null,2,"nie med øjnenes bagkant. På brystets sider et omvendt"]
[null,null,null,null,null,null,null,null,null,null,null,null,null,null,null,null,null,null,null,null,null,null,null,null,null,null,null,null,null,null,null,null,null,null,3,"en smal gul stribe nederst. Mundskjoldet har rundede"]
[null,null,null,null,null,null,null,null,null,null,null,null,null,null,null,null,null,null,null,null,null,null,null,null,null,null,null,null,null,null,null,null,null,null,4,"har lys behåring på brystsiderne. D. norwegica har sort."]
[null,null,null,null,null,null,null,null,null,null,null,null,null,null,null,null,null,null,null,null,null,null,null,null,null,null,null,null,null,null,null,null,null,null,5,"overgangen mellem den sorte og gule farve. Det sam-"]
[null,null,null,null,null,null,null,null,null,null,null,null,null,null,null,null,null,null,null,null,null,null,null,null,null,null,null,null,null,null,null,null,null,null,6,"et en vaseformet sort tegning.  Øjenindbugtningens  "]
[null,null,null,null,null,null,null,null,null,null,null,null,null,null,null,null,null,null,null,null,null,null,null,null,null,null,null,null,null,null,null,null,null,null,7,"hos hunnen spidst udtrukne, men ikke så meget som"]
[null,null,null,null,null,null,null,null,null,null,null,null,null,null,null,null,null,null,null,null,null,null,null,null,null,null,null,null,null,null,null,null,null,null,8,"trukne hjørner. Øjenindskæring gul nederst. Bagkrop-"]
[null,null,null,null,null,null,null,null,null,null,null,null,null,null,null,null,null,null,null,null,null,null,null,null,null,null,null,null,null,null,null,null,null,null,9,"ligne en  D. norwegica uden rødt på bagkroppen, men "]
[null,null,null,null,null,null,null,null,null,null,null,null,null,null,null,null,null,null,null,null,null,null,null,null,null,null,null,null,null,null,null,null,null,null,10,"brudt og ret bred nedefter. Øjenindbugtningen udfyldt"]
[null,null,null,null,null,null,null,null,null,null,null,null,null,null,null,null,null,null,null,null,null,null,null,null,null,null,null,null,null,null,null,null,null,null,11,"delt i to pletter. Øjenindbugtning gul, ikke buet ind "]
[]
[null,null,null,null,null,null,null,null,null,null,null,null,null,null,null,null,null,null,null,null,null,null,null,null,null,null,null,null,null,null,null,null,null,5,1,"panden end øjnenes bagkanter. 1. bagkropsleds basis"]
[null,null,null,null,null,null,null,null,null,null,null,null,null,null,null,null,null,null,null,null,null,null,null,null,null,null,null,null,null,null,null,null,null,null,2,"gult \"syvtal\". Bagkroppen helt uden rødlige områder."]
[null,null,null,null,null,null,null,null,null,null,null,null,null,null,null,null,null,null,null,null,null,null,null,null,null,null,null,null,null,null,null,null,null,null,3,"forreste hjørner.  Et godt kendetegn er den skarpe af-"]
[null,null,null,null,null,null,null,null,null,null,null,null,null,null,null,null,null,null,null,null,null,null,null,null,null,null,null,null,null,null,null,null,null,null,4,"(V.rufa med rød bagkropsbasis har kort afstand mellem"]
[null,null,null,null,null,null,null,null,null,null,null,null,null,null,null,null,null,null,null,null,null,null,null,null,null,null,null,null,null,null,null,null,null,null,5,"me gælder for D. norwegica, men den har sorte hår på"]
[null,null,null,null,null,null,null,null,null,null,null,null,null,null,null,null,null,null,null,null,null,null,null,null,null,null,null,null,null,null,null,null,null,null,6,"nedre rand gul. På brystets sider undertiden et omvendt"]
[null,null,null,null,null,null,null,null,null,null,null,null,null,null,null,null,null,null,null,null,null,null,null,null,null,null,null,null,null,null,null,null,null,null,7,"hos adulterina. Hannens er mere vinkelformede. "]
[null,null,null,null,null,null,null,null,null,null,null,null,null,null,null,null,null,null,null,null,null,null,null,null,null,null,null,null,null,null,null,null,null,null,8,"pen uden rødlige partier, med karakteristiske  buede "]
[null,null,null,null,null,null,null,null,null,null,null,null,null,null,null,null,null,null,null,null,null,null,null,null,null,null,null,null,null,null,null,null,null,null,9,"denne har stor afstand mellem øje og kindbakke.)"]
[null,null,null,null,null,null,null,null,null,null,null,null,null,null,null,null,null,null,null,null,null,null,null,null,null,null,null,null,null,null,null,null,null,null,10,"med gult, der øverst buer ind mod den gule pandeplet."]
[null,null,null,null,null,null,null,null,null,null,null,null,null,null,null,null,null,null,null,null,null,null,null,null,null,null,null,null,null,null,null,null,null,null,11,"mod den gule pandeplet. Gule stribe på brystet oftest"]
[]
[null,null,null,null,null,null,null,null,null,null,null,null,null,null,null,null,null,null,null,null,null,null,null,null,null,null,null,null,null,null,null,null,null,6,1,"er rødligt. Derved adskiller V.crabro sig fra D. media,"]
[null,null,null,null,null,null,null,null,null,null,null,null,null,null,null,null,null,null,null,null,null,null,null,null,null,null,null,null,null,null,null,null,null,null,2,"Adskiller sig derved fra V. crabro, der har 1. bagkrops-"]
[null,null,null,null,null,null,null,null,null,null,null,null,null,null,null,null,null,null,null,null,null,null,null,null,null,null,null,null,null,null,null,null,null,null,3,"grænsning mellem den sorte farve og den klart gule far-"]
[null,null,null,null,null,null,null,null,null,null,null,null,null,null,null,null,null,null,null,null,null,null,null,null,null,null,null,null,null,null,null,null,null,null,4,"øje og kindbakke). Mundskjold med stor sort plet (hun)"]
[null,null,null,null,null,null,null,null,null,null,null,null,null,null,null,null,null,null,null,null,null,null,null,null,null,null,null,null,null,null,null,null,null,null,5,"brystsiderne;  D. saxonica har lyse.  Se også D. adultari-"]
[null,null,null,null,null,null,null,null,null,null,null,null,null,null,null,null,null,null,null,null,null,null,null,null,null,null,null,null,null,null,null,null,null,null,6,"gult \"syvtal\" som hos D. media. Mellem- og baglår "]
[null,null,null,null,null,null,null,null,null,null,null,null,null,null,null,null,null,null,null,null,null,null,null,null,null,null,null,null,null,null,null,null,null,null,7,"Mellem- og baglårene har skarp afgrænsning mellem"]
[null,null,null,null,null,null,null,null,null,null,null,null,null,null,null,null,null,null,null,null,null,null,null,null,null,null,null,null,null,null,null,null,null,null,8,"tegninger. Bagskinnebenene har lange sorte hår. Det"]
[null,null,null,null,null,null,null,null,null,null,null,null,null,null,null,null,null,null,null,null,null,null,null,null,null,null,null,null,null,null,null,null,null,null,9,"Mundskjold  med stor sort plet, der kan være reduce-"]
[null,null,null,null,null,null,null,null,null,null,null,null,null,null,null,null,null,null,null,null,null,null,null,null,null,null,null,null,null,null,null,null,null,null,10,"Den gule stribe på siden af brystet er ofte lidt trekantet."]
[null,null,null,null,null,null,null,null,null,null,null,null,null,null,null,null,null,null,null,null,null,null,null,null,null,null,null,null,null,null,null,null,null,null,11,"lige. 1. bagkropsled oftest med smal gul tværstribe,"]
[]
[null,null,null,null,null,null,null,null,null,null,null,null,null,null,null,null,null,null,null,null,null,null,null,null,null,null,null,null,null,null,null,null,null,7,1,"som har basis sort og bagkroppen uden rødlige partier."]
[null,null,null,null,null,null,null,null,null,null,null,null,null,null,null,null,null,null,null,null,null,null,null,null,null,null,null,null,null,null,null,null,null,null,2,"leds basis rødbrun."]
[null,null,null,null,null,null,null,null,null,null,null,null,null,null,null,null,null,null,null,null,null,null,null,null,null,null,null,null,null,null,null,null,null,null,3,"ve på mellem- og baglår, ingen rødbrune overgange ."]
[null,null,null,null,null,null,null,null,null,null,null,null,null,null,null,null,null,null,null,null,null,null,null,null,null,null,null,null,null,null,null,null,null,null,4,"eller tynd streg (han). Se også snylteren D. adulterina."]
[null,null,null,null,null,null,null,null,null,null,null,null,null,null,null,null,null,null,null,null,null,null,null,null,null,null,null,null,null,null,null,null,null,null,5,"na, der snylter hos D. saxonica og D. norwegica."]
[null,null,null,null,null,null,null,null,null,null,null,null,null,null,null,null,null,null,null,null,null,null,null,null,null,null,null,null,null,null,null,null,null,null,6,"uden rødbrune partier; sort og gult skarpt afgrænset."]
[null,null,null,null,null,null,null,null,null,null,null,null,null,null,null,null,null,null,null,null,null,null,null,null,null,null,null,null,null,null,null,null,null,null,7,"de sorte og gule farver; ingen rødbrune overgange."]
[null,null,null,null,null,null,null,null,null,null,null,null,null,null,null,null,null,null,null,null,null,null,null,null,null,null,null,null,null,null,null,null,null,null,8,"har V. rufa ikke, kun lidt lyse hår."]
[null,null,null,null,null,null,null,null,null,null,null,null,null,null,null,null,null,null,null,null,null,null,null,null,null,null,null,null,null,null,null,null,null,null,9,"ret. Se også  V. austriaca, der er snylter hos V. rufa."]
[null,null,null,null,null,null,null,null,null,null,null,null,null,null,null,null,null,null,null,null,null,null,null,null,null,null,null,null,null,null,null,null,null,null,10,"1. bagkropsled har altid pilespidsformet sort tegning."]
[null,null,null,null,null,null,null,null,null,null,null,null,null,null,null,null,null,null,null,null,null,null,null,null,null,null,null,null,null,null,null,null,null,null,11,"men pilespids-tegning som hos germanica forekommer."]

{"sheet":"Ark2","index":1,"n_rows":0,"n_cols":0,"rows_kept":0,"cut":false,"hidden":false,"merged":[]}

{"sheet":"Ark3","index":2,"n_rows":0,"n_cols":0,"rows_kept":0,"cut":false,"hidden":false,"merged":[]}

{"sheet":"Ark4","index":3,"n_rows":0,"n_cols":0,"rows_kept":0,"cut":false,"hidden":false,"merged":[]}

{"sheet":"Ark5","index":4,"n_rows":0,"n_cols":0,"rows_kept":0,"cut":false,"hidden":false,"merged":[]}